fUST/lending_fUST_20250423
["ID","MTS","AMOUNT","RATE_DAILY","PERIOD"]
[358739229,1745406682889,-500.0,0.00022372,2]
[358739230,1745406682899,-411.42113111,0.00022372,2]
[358739231,1745406682909,-176.55516758,0.00022372,2]
[358739232,1745406682918,-500.0,0.00022372,2]
[358739233,1745406682928,-500.0,0.00022372,2]
[358739234,1745406682937,-500.0,0.00022372,2]
[358739235,1745406682947,-500.0,0.00022372,2]
[358739236,1745406682957,-500.0,0.00022372,2]
[358739237,1745406682966,-500.0,0.00022372,2]
[358739238,1745406682976,-500.0,0.00022372,2]
[358739239,1745406682986,-500.0,0.00022372,2]
[358739240,1745406682995,-500.0,0.00022372,2]
[358739241,1745406683005,-500.11,0.00022372,2]
[358739242,1745406683015,-500.0,0.00022372,2]
[358739243,1745406683024,-529.85847945,0.00022372,2]
[358739244,1745406683034,-500.0,0.00022372,2]
[358739245,1745406683044,-531.44,0.00022372,2]
[358739246,1745406683053,-500.0,0.00022372,2]
[358739247,1745406683063,-500.0,0.00022372,2]
[358739248,1745406683073,-152.61212114,0.00022372,2]
[358739249,1745406683082,-544.88,0.00022372,2]
[358739250,1745406683092,-500.0,0.00022372,2]
[358739251,1745406683102,-500.0,0.00022372,2]
[358739252,1745406683112,-2820.05,0.00022372,2]
[358739253,1745406683122,-462.17121917,0.00022372,2]
[358739254,1745406683131,-558.75,0.00022372,2]
[358739255,1745406683141,-500.0,0.00022372,2]
[358739256,1745406683150,-500.0,0.00022372,2]
[358739257,1745406683160,-1535.69,0.00022372,2]
[358739258,1745406683175,-509.50091459,0.00022372,2]
[358739259,1745406683185,-523.01,0.00022372,2]
[358739260,1745406683195,-538.56567726,0.00022372,2]
[358739261,1745406683205,-500.0,0.00022372,2]
[358739262,1745406683219,-513.48752404,0.00022372,2]
[358739263,1745406683231,-500.0,0.00022372,2]
[358739264,1745406683242,-500.0,0.00022372,2]
[358739265,1745406683253,-435.03794026,0.00022372,2]
[358739266,1745406683263,-500.0,0.00022372,2]
[358739267,1745406683273,-326.09,0.00022372,2]
[358739268,1745406683283,-500.0,0.00022372,2]
[358739269,1745406683292,-500.0,0.00022372,2]
[358739270,1745406683302,-222.98,0.00022372,2]
[358739271,1745406683313,-3671.34,0.00022372,2]
[358739272,1745406683322,-500.0,0.00022372,2]
[358739273,1745406683333,-500.0,0.00022372,2]
[358739274,1745406683343,-500.0,0.00022372,2]
[358739275,1745406683353,-500.0,0.00022372,2]
[358739276,1745406683362,-816.63,0.00022374,2]
[358739277,1745406683372,-500.0,0.00022374,2]
[358739278,1745406683381,-290.68835763,0.00022374,2]
[358739279,1745406683391,-500.0,0.00022374,2]
[358739280,1745406683401,-787.01,0.00022374,2]
[358739281,1745406683410,-500.0,0.00022374,2]
[358739282,1745406683420,-500.0,0.00022374,2]
[358739283,1745406683430,-500.0,0.00022374,2]
[358739284,1745406683439,-500.0,0.00022374,2]
[358739285,1745406683449,-500.0,0.00022374,2]
[358739286,1745406683459,-151.0,0.00022374,7]
[358739287,1745406683468,-151.0,0.00022374,7]
[358739288,1745406683478,-151.0,0.00022374,7]
[358739289,1745406683487,-221.565975,0.00022374,7]
[358739290,1745406683496,-221.565975,0.00022374,7]
[358739291,1745406683506,-151.0,0.00022374,7]
[358739292,1745406683515,-151.0,0.00022374,7]
[358739293,1745406683524,-351.918756,0.00022374,2]
[358739294,1745406683534,-351.918756,0.00022374,2]
[358739295,1745406683543,-517.81,0.00022375,2]
[358739296,1745406683552,-500.0,0.00022375,2]
[358739297,1745406683562,-155.10101145,0.00022377,2]
[358739298,1745406683572,-500.0,0.00022377,2]
[358739299,1745406683581,-500.0,0.00022377,2]
[358739300,1745406683593,-500.0,0.00022377,2]
[358739301,1745406683602,-500.0,0.00022377,2]
[358739302,1745406683612,-500.0,0.00022377,2]
[358739303,1745406683623,-500.0,0.00022377,2]
[358739304,1745406683633,-500.0,0.00022377,2]
[358739305,1745406683642,-413.07,0.00022377,2]
[358739306,1745406683651,-500.0,0.00022377,2]
[358739307,1745406683662,-250.0,0.00022466,2]
[358739308,1745406683672,-151.0,0.00022466,2]
[358739309,1745406683681,-1041.24686209,0.00022487,30]
[358739310,1745406683691,-518.91,0.00022644,2]
[358739311,1745406683700,-500.0,0.00022644,2]
[358739312,1745406683710,-500.0,0.00022644,2]
[358739313,1745406683719,-1233.74,0.00022644,2]
[358739314,1745406683729,-500.0,0.00022644,2]
[358739315,1745406683739,-242.05339163,0.00022644,2]
[358739316,1745406683748,-1063.73,0.00022644,2]
[358739317,1745406683758,-500.0,0.00022644,2]
[358739318,1745406683768,-500.0,0.00022644,2]
[358739319,1745406683778,-500.0,0.00022644,2]
[358739320,1745406683787,-1565.82,0.00022644,2]
[358739321,1745406683797,-2600.73,0.00022644,2]
[358739322,1745406683806,-500.0,0.00022644,2]
[358739323,1745406683816,-500.0,0.00022644,2]
[358739324,1745406684003,-500.0,0.00022644,2]
[358739325,1745406684014,-500.0,0.00022644,2]
[358739326,1745406684023,-6139.88,0.00022644,2]
[358739327,1745406684033,-3428.99,0.00022644,2]
[358739328,1745406684043,-610.39,0.00022644,2]
[358739329,1745406684053,-500.0,0.00022644,2]
[358739330,1745406684063,-500.0,0.00022644,2]
[358739331,1745406684074,-500.0,0.00022644,2]
[358739332,1745406684085,-582.2,0.00022644,2]
[358739333,1745406684094,-500.0,0.00022644,2]
[358739334,1745406684104,-500.0,0.00022644,2]
[358739335,1745406684114,-2287.57,0.00022644,2]
[358739336,1745406684124,-500.0,0.00022644,2]
[358739337,1745406684133,-500.0,0.00022645,2]
[358739338,1745406684142,-507.33,0.00022645,2]
[358739339,1745406684152,-500.0,0.00022645,2]
[358739340,1745406684161,-500.0,0.00022645,2]
[358739341,1745406684173,-1754.3,0.00022645,2]
[358739342,1745406684183,-500.0,0.00022645,2]
[358739343,1745406684193,-871.23,0.00022645,2]
[358739344,1745406684203,-224.36,0.00022646,2]
[358739345,1745406684212,-500.0,0.00022646,2]
[358739346,1745406684222,-500.0,0.00022646,2]
[358739347,1745406684231,-500.0,0.00022646,2]
[358739348,1745406684240,-500.0,0.00022646,2]
[358739349,1745406684252,-500.0,0.00022646,2]
[358739350,1745406684261,-512.74,0.00022646,2]
[358739351,1745406684270,-500.0,0.00022646,2]
[358739352,1745406684280,-500.0,0.00022646,2]
[358739353,1745406684289,-500.0,0.00022646,2]
[358739354,1745406684299,-500.0,0.00022646,2]
[358739355,1745406684309,-500.0,0.00022646,2]
[358739356,1745406684318,-500.0,0.00022646,2]
[358739357,1745406684327,-500.0,0.00022646,2]
[358739358,1745406684337,-500.0,0.00022646,2]
[358739359,1745406684347,-500.0,0.00022646,2]
[358739360,1745406684356,-500.0,0.00022646,2]
[358739361,1745406684366,-500.0,0.00022646,2]
[358739362,1745406684377,-500.0,0.00022646,2]
[358739363,1745406684386,-500.0,0.00022646,2]
[358739364,1745406684396,-500.0,0.00022646,2]
[358739365,1745406684405,-500.0,0.00022646,2]
[358739366,1745406684414,-500.0,0.00022646,2]
[358739367,1745406684423,-228.26514109,0.00022646,2]
[358739368,1745406684433,-500.0,0.00022646,2]
[358739369,1745406684442,-500.11,0.00022646,2]
[358739370,1745406684452,-500.0,0.00022646,2]
[358739371,1745406684462,-531.44,0.00022646,2]
[358739372,1745406684471,-500.0,0.00022646,2]
[358739373,1745406684481,-500.0,0.00022646,2]
[358739374,1745406684489,-544.88,0.00022646,2]
[358739375,1745406684499,-426.09,0.00022646,2]
[358739376,1745406684508,-500.0,0.00022646,2]
[358739377,1745406684517,-2820.05,0.00022646,2]
[358739378,1745406684527,-558.75,0.00022646,2]
[358739379,1745406684536,-500.0,0.00022646,2]
[358739380,1745406684546,-500.0,0.00022646,2]
[358739381,1745406684555,-1535.69,0.00022646,2]
[358739382,1745406684564,-500.0,0.00022646,2]
[358739383,1745406684574,-500.0,0.00022646,2]
[358739384,1745406684583,-500.0,0.00022646,2]
[358739385,1745406684593,-500.0,0.00022646,2]
[358739386,1745406684602,-278.95,0.00022646,2]
[358739387,1745406684611,-3671.34,0.00022646,2]
[358739388,1745406684621,-500.0,0.00022646,2]
[358739389,1745406684630,-427.95180913,0.00022646,2]
[358739390,1745406684639,-541.6973897,0.00022646,2]
[358739391,1745406684648,-220.42391081,0.00022646,2]
[358739392,1745406684658,-816.63,0.00022648,2]
[358739393,1745406684667,-500.0,0.00022648,2]
[358739394,1745406684676,-626.72,0.00022648,2]
[358739395,1745406684686,-787.01,0.00022648,2]
[358739396,1745406684695,-258.76,0.00022648,2]
[358739397,1745406684704,-500.0,0.00022648,2]
[358739398,1745406684713,-500.0,0.00022648,2]
[358739399,1745406684723,-500.0,0.00022648,2]
[358739400,1745406684732,-237.26,0.00022648,2]
[358739401,1745406684741,-517.81,0.00022649,2]
[358739402,1745406684750,-500.0,0.00022649,2]
[358739403,1745406684759,-500.0,0.00022651,2]
[358739404,1745406684769,-500.0,0.00022651,2]
[358739405,1745406684778,-3583.84413045,0.00022659,4]
[358739406,1745406684787,-167.192,0.00022661,2]
[358739407,1745406684796,-233.143,0.00022661,2]
[358739408,1745406684805,-218.472,0.00022661,2]
[358739409,1745406684815,-706.0,0.00022661,2]
[358739410,1745406684823,-544.0,0.00022661,2]
[358739411,1745406684833,-2246.0,0.00022661,2]
[358739412,1745406684844,-151.0,0.0002274,2]
[358739413,1745406684854,-500.0,0.00022918,2]
[358739414,1745406684863,-500.0,0.00022918,2]
[358739415,1745406684872,-1233.74,0.00022918,2]
[358739416,1745406684882,-500.0,0.00022918,2]
[358739417,1745406684891,-1063.73,0.00022918,2]
[358739418,1745406684902,-500.0,0.00022918,2]
[358739419,1745406684911,-500.0,0.00022918,2]
[358739420,1745406684921,-500.0,0.00022918,2]
[358739421,1745406684931,-1565.82,0.00022918,2]
[358739422,1745406684940,-2600.73,0.00022918,2]
[358739423,1745406684950,-500.0,0.00022918,2]
[358739424,1745406684959,-500.0,0.00022918,2]
[358739425,1745406684969,-500.0,0.00022918,2]
[358739426,1745406684979,-500.0,0.00022918,2]
[358739427,1745406684989,-6139.88,0.00022918,2]
[358739428,1745406684998,-3428.99,0.00022918,2]
[358739429,1745406685008,-610.39,0.00022918,2]
[358739430,1745406685018,-500.0,0.00022918,2]
[358739431,1745406685028,-285.61229001,0.00022918,2]
[358739432,1745406685039,-500.0,0.00022918,2]
[358739433,1745406685048,-582.2,0.00022918,2]
[358739434,1745406685059,-500.0,0.00022918,2]
[358739435,1745406685070,-500.0,0.00022918,2]
[358739436,1745406685080,-2287.57,0.00022918,2]
[358739437,1745406685090,-500.0,0.00022918,2]
[358739438,1745406685100,-500.0,0.00022919,2]
[358739439,1745406685112,-507.33,0.00022919,2]
[358739440,1745406685122,-500.0,0.00022919,2]
[358739441,1745406685132,-500.0,0.00022919,2]
[358739442,1745406685142,-1754.3,0.00022919,2]
[358739443,1745406685151,-500.0,0.00022919,2]
[358739444,1745406685160,-871.23,0.00022919,2]
[358739445,1745406685171,-500.0,0.0002292,2]
[358739446,1745406685183,-500.0,0.0002292,2]
[358739447,1745406685192,-500.0,0.0002292,2]
[358739448,1745406685202,-500.0,0.0002292,2]
[358739449,1745406685211,-500.0,0.0002292,2]
[358739450,1745406685221,-512.74,0.0002292,2]
[358739451,1745406685231,-506.79,0.0002292,2]
[358739452,1745406685241,-500.0,0.0002292,2]
[358739453,1745406685251,-500.0,0.0002292,2]
[358739454,1745406685261,-500.0,0.0002292,2]
[358739455,1745406685270,-500.0,0.0002292,2]
[358739456,1745406685279,-500.0,0.0002292,2]
[358739457,1745406685288,-500.0,0.0002292,2]
[358739458,1745406685297,-492.18677405,0.0002292,2]
[358739459,1745406685308,-500.0,0.0002292,2]
[358739460,1745406685318,-500.0,0.0002292,2]
[358739461,1745406685328,-526.62,0.0002292,2]
[358739462,1745406685338,-500.0,0.0002292,2]
[358739463,1745406685348,-500.0,0.0002292,2]
[358739464,1745406685357,-491.71,0.0002292,2]
[358739465,1745406685367,-500.0,0.0002292,2]
[358739466,1745406685376,-223.92,0.0002292,2]
[358739467,1745406685386,-500.0,0.0002292,2]
[358739468,1745406685395,-500.11,0.0002292,2]
[358739469,1745406685405,-500.0,0.0002292,2]
[358739470,1745406685416,-531.44,0.0002292,2]
[358739471,1745406685425,-500.0,0.0002292,2]
[358739472,1745406685435,-500.0,0.0002292,2]
[358739473,1745406685445,-544.88,0.0002292,2]
[358739474,1745406685454,-500.0,0.0002292,2]
[358739475,1745406685464,-2820.05,0.0002292,2]
[358739476,1745406685474,-558.75,0.0002292,2]
[358739477,1745406685484,-500.0,0.0002292,2]
[358739478,1745406685494,-500.0,0.0002292,2]
[358739479,1745406685503,-1535.69,0.0002292,2]
[358739480,1745406685512,-500.0,0.0002292,2]
[358739481,1745406685522,-519.42,0.0002292,2]
[358739482,1745406685531,-500.0,0.0002292,2]
[358739483,1745406685541,-500.0,0.0002292,2]
[358739484,1745406685551,-3671.34,0.0002292,2]
[358739485,1745406685560,-500.0,0.0002292,2]
[358739486,1745406685570,-816.63,0.00022922,2]
[358739487,1745406685579,-500.0,0.00022922,2]
[358739488,1745406685589,-787.01,0.00022922,2]
[358739489,1745406685599,-500.0,0.00022922,2]
[358739490,1745406685608,-500.0,0.00022922,2]
[358739491,1745406685618,-500.0,0.00022922,2]
[358739492,1745406685628,-517.81,0.00022923,2]
[358739493,1745406685638,-383.84,0.00022923,2]
[358739494,1745406685647,-500.0,0.00022925,2]
[358739495,1745406685657,-500.0,0.00022925,2]
[358739496,1745406685667,-160.0,0.00023,3]
[358739497,1745406685677,-420.82143104,0.00023,3]
[358739498,1745406685686,-160.0,0.00023,3]
[358739499,1745406685695,-350.0,0.00023014,2]
[358739500,1745406685705,-151.0,0.00023014,2]
[358739501,1745406685714,-2000.0,0.00023083,4]
[358739502,1745406685726,-500.0,0.00023192,2]
[358739503,1745406685735,-500.0,0.00023192,2]
[358739504,1745406685744,-1233.74,0.00023192,2]
[358739505,1745406685754,-500.0,0.00023192,2]
[358739506,1745406685763,-1063.73,0.00023192,2]
[358739507,1745406685772,-500.0,0.00023192,2]
[358739508,1745406685782,-328.1840569,0.00023192,2]
[358739509,1745406685791,-471.53,0.00023192,2]
[358739510,1745406685804,-1565.82,0.00023192,2]
[358739511,1745406685814,-2600.73,0.00023192,2]
[358739512,1745406685824,-500.0,0.00023192,2]
[358739513,1745406685837,-500.0,0.00023192,2]
[358739514,1745406685847,-480.79,0.00023192,2]
[358739515,1745406685856,-500.0,0.00023192,2]
[358739516,1745406685865,-6139.88,0.00023192,2]
[358739517,1745406685875,-3428.99,0.00023192,2]
[358739518,1745406685884,-610.39,0.00023192,2]
[358739519,1745406685896,-500.0,0.00023192,2]
[358739520,1745406685906,-500.0,0.00023192,2]
[358739521,1745406685915,-582.2,0.00023192,2]
[358739522,1745406685925,-178.9419091,0.00023192,2]
[358739523,1745406685934,-500.0,0.00023192,2]
[358739524,1745406685944,-2287.57,0.00023192,2]
[358739525,1745406685954,-500.0,0.00023192,2]
[358739526,1745406685964,-500.0,0.00023193,2]
[358739527,1745406685974,-507.33,0.00023193,2]
[358739528,1745406685983,-500.0,0.00023193,2]
[358739529,1745406685994,-500.0,0.00023193,2]
[358739530,1745406686003,-1754.3,0.00023193,2]
[358739531,1745406686014,-393.91592243,0.00023193,2]
[358739532,1745406686024,-871.23,0.00023193,2]
[358739533,1745406686033,-647.83570787,0.00023194,2]
[358739534,1745406686042,-500.0,0.00023194,2]
[358739535,1745406686052,-500.0,0.00023194,2]
[358739536,1745406686062,-500.0,0.00023194,2]
[358739537,1745406686072,-500.0,0.00023194,2]
[358739538,1745406686082,-512.74,0.00023194,2]
[358739539,1745406686092,-500.0,0.00023194,2]
[358739540,1745406686101,-500.0,0.00023194,2]
[358739541,1745406686111,-500.0,0.00023194,2]
[358739542,1745406686121,-500.0,0.00023194,2]
[358739543,1745406686131,-500.0,0.00023194,2]
[358739544,1745406686140,-235.76,0.00023194,2]
[358739545,1745406686149,-500.0,0.00023194,2]
[358739546,1745406686159,-362.75,0.00023194,2]
[358739547,1745406686170,-500.11,0.00023194,2]
[358739548,1745406686181,-578.35,0.00023194,2]
[358739549,1745406686191,-531.44,0.00023194,2]
[358739550,1745406686201,-649.27,0.00023194,2]
[358739551,1745406686211,-500.0,0.00023194,2]
[358739552,1745406686220,-544.88,0.00023194,2]
[358739553,1745406686230,-500.0,0.00023194,2]
[358739554,1745406686239,-2820.05,0.00023194,2]
[358739555,1745406686252,-558.75,0.00023194,2]
[358739556,1745406686262,-410.6,0.00023194,2]
[358739557,1745406686272,-500.0,0.00023194,2]
[358739558,1745406686282,-1535.69,0.00023194,2]
[358739559,1745406686292,-500.0,0.00023194,2]
[358739560,1745406686302,-3671.34,0.00023194,2]
[358739561,1745406686311,-500.0,0.00023194,2]
[358739562,1745406686320,-816.63,0.00023196,2]
[358739563,1745406686330,-500.0,0.00023196,2]
[358739564,1745406686340,-787.01,0.00023196,2]
[358739565,1745406686350,-500.0,0.00023196,2]
[358739566,1745406686360,-500.0,0.00023196,2]
[358739567,1745406686370,-500.0,0.00023196,2]
[358739568,1745406686379,-151.0,0.00023196,7]
[358739569,1745406686390,-151.0,0.00023196,7]
[358739570,1745406686399,-311.949792,0.00023196,7]
[358739571,1745406686410,-311.949792,0.00023196,7]
[358739572,1745406686420,-517.81,0.00023197,2]
[358739573,1745406686429,-500.0,0.00023199,2]
[358739574,1745406686439,-500.0,0.00023199,2]
[358739575,1745406686450,-900.0,0.0002326,2]
[358739576,1745406686460,-245.0,0.00023288,2]
[358739577,1745406686470,-3583.84413045,0.00023348,4]
[358739578,1745406686481,-500.0,0.00023466,2]
[358739579,1745406686490,-500.0,0.00023466,2]
[358739580,1745406686500,-1233.74,0.00023466,2]
[358739581,1745406686510,-500.0,0.00023466,2]
[358739582,1745406686519,-1063.73,0.00023466,2]
[358739583,1745406686530,-500.0,0.00023466,2]
[358739584,1745406686540,-1565.82,0.00023466,2]
[358739585,1745406686551,-2600.73,0.00023466,2]
[358739586,1745406686563,-500.0,0.00023466,2]
[358739587,1745406686573,-500.0,0.00023466,2]
[358739588,1745406686583,-500.0,0.00023466,2]
[358739589,1745406686594,-6139.88,0.00023466,2]
[358739590,1745406686604,-3428.99,0.00023466,2]
[358739591,1745406686614,-610.39,0.00023466,2]
[358739592,1745406686623,-500.0,0.00023466,2]
[358739593,1745406686633,-500.0,0.00023466,2]
[358739594,1745406686643,-582.2,0.00023466,2]
[358739595,1745406686653,-500.0,0.00023466,2]
[358739596,1745406686663,-2287.57,0.00023466,2]
[358739597,1745406686672,-500.0,0.00023466,2]
[358739598,1745406686683,-500.0,0.00023467,2]
[358739599,1745406686692,-507.33,0.00023467,2]
[358739600,1745406686702,-595.9,0.00023467,2]
[358739601,1745406686712,-500.0,0.00023467,2]
[358739602,1745406686722,-1754.3,0.00023467,2]
[358739603,1745406686731,-871.23,0.00023467,2]
[358739604,1745406686741,-500.0,0.00023468,2]
[358739605,1745406686750,-500.0,0.00023468,2]
[358739606,1745406686760,-500.0,0.00023468,2]
[358739607,1745406686769,-500.0,0.00023468,2]
[358739608,1745406686779,-512.74,0.00023468,2]
[358739609,1745406686789,-500.0,0.00023468,2]
[358739610,1745406686799,-484.96950864,0.00023468,2]
[358739611,1745406686809,-500.0,0.00023468,2]
[358739612,1745406686818,-228.12,0.00023468,2]
[358739613,1745406686828,-500.0,0.00023468,2]
[358739614,1745406686838,-500.11,0.00023468,2]
[358739615,1745406686848,-531.44,0.00023468,2]
[358739616,1745406687014,-544.88,0.00023468,2]
[358739617,1745406687024,-500.0,0.00023468,2]
[358739618,1745406687035,-2820.05,0.00023468,2]
[358739619,1745406687044,-558.75,0.00023468,2]
[358739620,1745406687055,-412.37937624,0.00023468,2]
[358739621,1745406687064,-1535.69,0.00023468,2]
[358739622,1745406687074,-500.0,0.00023468,2]
[358739623,1745406687084,-3671.34,0.00023468,2]
[358739624,1745406687095,-500.0,0.00023468,2]
[358739625,1745406687106,-816.63,0.0002347,2]
[358739626,1745406687115,-500.0,0.0002347,2]
[358739627,1745406687126,-787.01,0.0002347,2]
[358739628,1745406687135,-500.0,0.0002347,2]
[358739629,1745406687145,-408.44,0.0002347,2]
[358739630,1745406687156,-500.0,0.0002347,2]
[358739631,1745406687167,-517.81,0.00023471,2]
[358739632,1745406687180,-500.0,0.00023473,2]
[358739633,1745406687190,-500.0,0.00023473,2]
[358739634,1745406687201,-151.0,0.00023482,7]
[358739635,1745406687211,-151.0,0.00023521,7]
[358739636,1745406687223,-281.114084,0.00023521,7]
[358739637,1745406687233,-281.114084,0.00023521,7]
[358739638,1745406687243,-400.0,0.00023562,2]
[358739639,1745406687254,-587.0,0.00023602,2]
[358739640,1745406687264,-612.15,0.0002374,2]
[358739641,1745406687273,-500.0,0.0002374,2]
[358739642,1745406687283,-1233.74,0.0002374,2]
[358739643,1745406687293,-500.0,0.0002374,2]
[358739644,1745406687303,-1063.73,0.0002374,2]
[358739645,1745406687313,-500.0,0.0002374,2]
[358739646,1745406687323,-1565.82,0.0002374,2]
[358739647,1745406687332,-2600.73,0.0002374,2]
[358739648,1745406687342,-500.0,0.0002374,2]
[358739649,1745406687352,-500.0,0.0002374,2]
[358739650,1745406687362,-500.0,0.0002374,2]
[358739651,1745406687372,-6139.88,0.0002374,2]
[358739652,1745406687382,-3428.99,0.0002374,2]
[358739653,1745406687392,-610.39,0.0002374,2]
[358739654,1745406687402,-500.0,0.0002374,2]
[358739655,1745406687412,-500.0,0.0002374,2]
[358739656,1745406687422,-582.2,0.0002374,2]
[358739657,1745406687431,-531.89,0.0002374,2]
[358739658,1745406687441,-2287.57,0.0002374,2]
[358739659,1745406687450,-500.0,0.0002374,2]
[358739660,1745406687460,-266.87,0.00023741,2]
[358739661,1745406687470,-507.33,0.00023741,2]
[358739662,1745406687480,-500.0,0.00023741,2]
[358739663,1745406687489,-1754.3,0.00023741,2]
[358739664,1745406687499,-871.23,0.00023741,2]
[358739665,1745406687508,-500.0,0.00023742,2]
[358739666,1745406687518,-500.0,0.00023742,2]
[358739667,1745406687527,-500.0,0.00023742,2]
[358739668,1745406687537,-500.0,0.00023742,2]
[358739669,1745406687548,-512.74,0.00023742,2]
[358739670,1745406687558,-500.0,0.00023742,2]
[358739671,1745406687567,-500.0,0.00023742,2]
[358739672,1745406687577,-456.87,0.00023742,2]
[358739673,1745406687586,-500.11,0.00023742,2]
[358739674,1745406687596,-531.44,0.00023742,2]
[358739675,1745406687606,-544.88,0.00023742,2]
[358739676,1745406687615,-500.0,0.00023742,2]
[358739677,1745406687624,-2820.05,0.00023742,2]
[358739678,1745406687633,-558.75,0.00023742,2]
[358739679,1745406687643,-1535.69,0.00023742,2]
[358739680,1745406687653,-500.0,0.00023742,2]
[358739681,1745406687662,-3671.34,0.00023742,2]
[358739682,1745406687672,-500.0,0.00023742,2]
[358739683,1745406687681,-153.801849,0.00023743,7]
[358739684,1745406687691,-151.0,0.00023743,7]
[358739685,1745406687701,-816.63,0.00023744,2]
[358739686,1745406687711,-216.92355922,0.00023744,2]
[358739687,1745406687721,-787.01,0.00023744,2]
[358739688,1745406687732,-500.0,0.00023744,2]
[358739689,1745406687742,-500.0,0.00023744,2]
[358739690,1745406687751,-504.763637,0.00023744,7]
[358739691,1745406687761,-504.763637,0.00023744,7]
[358739692,1745406687771,-151.0,0.00023744,7]
[358739693,1745406687780,-522.6319,0.00023744,7]
[358739694,1745406687790,-522.6319,0.00023744,7]
[358739695,1745406687799,-517.81,0.00023745,2]
[358739696,1745406687809,-500.0,0.00023747,2]
[358739697,1745406687818,-500.0,0.00023747,2]
[358739698,1745406687828,-2000.0,0.00023948,4]
[358739699,1745406687837,-500.0,0.00024014,2]
[358739700,1745406687846,-1233.74,0.00024014,2]
[358739701,1745406687856,-500.0,0.00024014,2]
[358739702,1745406687865,-1063.73,0.00024014,2]
[358739703,1745406687876,-500.0,0.00024014,2]
[358739704,1745406687887,-1565.82,0.00024014,2]
[358739705,1745406687896,-2600.73,0.00024014,2]
[358739706,1745406687906,-500.0,0.00024014,2]
[358739707,1745406687915,-500.0,0.00024014,2]
[358739708,1745406687925,-6139.88,0.00024014,2]
[358739709,1745406687935,-3428.99,0.00024014,2]
[358739710,1745406687948,-610.39,0.00024014,2]
[358739711,1745406687958,-572.49,0.00024014,2]
[358739712,1745406687969,-500.36,0.00024014,2]
[358739713,1745406687978,-582.2,0.00024014,2]
[358739714,1745406687987,-2287.57,0.00024014,2]
[358739715,1745406687998,-500.0,0.00024014,2]
[358739716,1745406688007,-507.33,0.00024015,2]
[358739717,1745406688017,-313.44,0.00024015,2]
[358739718,1745406688027,-1754.3,0.00024015,2]
[358739719,1745406688036,-871.23,0.00024015,2]
[358739720,1745406688045,-500.0,0.00024016,2]
[358739721,1745406688055,-500.0,0.00024016,2]
[358739722,1745406688064,-500.0,0.00024016,2]
[358739723,1745406688074,-500.0,0.00024016,2]
[358739724,1745406688083,-512.74,0.00024016,2]
[358739725,1745406688093,-500.0,0.00024016,2]
[358739726,1745406688102,-500.0,0.00024016,2]
[358739727,1745406688111,-500.11,0.00024016,2]
[358739728,1745406688120,-531.44,0.00024016,2]